[Event "Titled Tuesday Blitz September 28 2021"]
[White "Serikbay, Assel"]
[Black "Begmuratov, Khumoyun"]
[WhiteFideId "13706799"]
[BlackFideId "14210207"]
[WhiteElo "2044"]
[BlackElo "1948"]
[Result "0-1"]
[Round "01"]
[TimeControl "180+1"]
[Date "2021.09.28"]
[WhiteClock "0:00:02"]
[BlackClock "0:00:05"]

1. d4 {[%clk 0:02:56]}  Nf6 {[%clk 0:02:59]} 2. c4 {[%clk 0:02:56]}  g6 {[%clk 0:02:57]} 3. g3 {[%clk 0:02:56]}  Bg7 {[%clk 0:02:56]} 4. Bg2 {[%clk 0:02:52]}  O-O {[%clk 0:02:56]} 5. e4 {[%clk 0:02:52]}  d6 {[%clk 0:02:52]} 6. Nc3 {[%clk 0:02:53]}  c5 {[%clk 0:02:35]} 7. Nf3 {[%clk 0:02:51]}  cxd4 {[%clk 0:02:35]} 8. Nxd4 {[%clk 0:02:50]}  Nc6 {[%clk 0:02:34]} 9. Nxc6 {[%clk 0:02:38]}  bxc6 {[%clk 0:02:34]} 10. O-O {[%clk 0:02:39]}  Be6 {[%clk 0:02:14]} 11. Qe2 {[%clk 0:02:32]}  Nd7 {[%clk 0:02:10]} 12. Nd5 {[%clk 0:01:54]}  Nb6 {[%clk 0:01:56]} 13. Ne3 {[%clk 0:01:46]}  Bd4 {[%clk 0:01:43]} 14. Rd1 {[%clk 0:01:44]}  c5 {[%clk 0:01:37]} 15. Nd5 {[%clk 0:01:44]}  Nxd5 {[%clk 0:01:36]} 16. cxd5 {[%clk 0:01:43]}  Bd7 {[%clk 0:01:35]} 17. Bh6 {[%clk 0:01:43]}  Re8 {[%clk 0:01:34]} 18. Kh1 {[%clk 0:01:40]}  Qb6 {[%clk 0:01:29]} 19. Rab1 {[%clk 0:01:40]}  a5 {[%clk 0:01:24]} 20. b3 {[%clk 0:01:37]}  f6 {[%clk 0:01:07]} 21. f4 {[%clk 0:01:28]}  Qc7 {[%clk 0:00:59]} 22. f5 {[%clk 0:01:28]}  Kf7 {[%clk 0:00:52]} 23. Bd2 {[%clk 0:01:21]}  a4 {[%clk 0:00:50]} 24. b4 {[%clk 0:01:19]}  c4 {[%clk 0:00:48]} 25. Rbc1 {[%clk 0:01:17]}  Bb5 {[%clk 0:00:47]} 26. Bc3 {[%clk 0:01:17]}  Bxc3 {[%clk 0:00:36]} 27. Rxc3 {[%clk 0:01:18]}  a3 {[%clk 0:00:36]} 28. Bh3 {[%clk 0:01:16]}  Ra4 {[%clk 0:00:34]} 29. fxg6+ {[%clk 0:01:16]}  hxg6 {[%clk 0:00:33]} 30. Be6+ {[%clk 0:01:16]}  Kg7 {[%clk 0:00:33]} 31. Qg4 {[%clk 0:01:16]}  Rh8 {[%clk 0:00:30]} 32. Rb1 {[%clk 0:00:46]}  Qa7 {[%clk 0:00:30]} 33. Qf3 {[%clk 0:00:44]}  Qd4 {[%clk 0:00:29]} 34. Qe3 {[%clk 0:00:40]}  Qe5 {[%clk 0:00:23]} 35. Kg1 {[%clk 0:00:36]}  Raa8 {[%clk 0:00:17]} 36. Rcc1 {[%clk 0:00:34]}  Rab8 {[%clk 0:00:16]} 37. Rc3 {[%clk 0:00:30]}  Rb7 {[%clk 0:00:16]} 38. Rbc1 {[%clk 0:00:28]}  Rc7 {[%clk 0:00:16]} 39. Qf4 {[%clk 0:00:25]}  Qd4+ {[%clk 0:00:13]} 40. Qe3 {[%clk 0:00:25]}  Qe5 {[%clk 0:00:13]} 41. Qf4 {[%clk 0:00:24]}  Rh5 {[%clk 0:00:13]} 42. Qxe5 {[%clk 0:00:24]}  Rxe5 {[%clk 0:00:14]} 43. Re3 {[%clk 0:00:24]}  f5 {[%clk 0:00:13]} 44. Kf2 {[%clk 0:00:22]}  fxe4 {[%clk 0:00:13]} 45. Rcc3 {[%clk 0:00:20]}  Rb7 {[%clk 0:00:10]} 46. Rxa3 {[%clk 0:00:19]}  Rb8 {[%clk 0:00:08]} 47. Ra7 {[%clk 0:00:17]}  Kf6 {[%clk 0:00:08]} 48. a4 {[%clk 0:00:17]}  Be8 {[%clk 0:00:08]} 49. b5 {[%clk 0:00:17]}  Bf7 {[%clk 0:00:07]} 50. Bxf7 {[%clk 0:00:17]}  Kxf7 {[%clk 0:00:08]} 51. Rc3 {[%clk 0:00:16]}  Rc8 {[%clk 0:00:07]} 52. Ke3 {[%clk 0:00:16]}  Rxd5 {[%clk 0:00:07]} 53. b6 {[%clk 0:00:16]}  Rd3+ {[%clk 0:00:06]} 54. Rxd3 {[%clk 0:00:16]}  exd3 {[%clk 0:00:06]} 55. b7 {[%clk 0:00:16]}  Rb8 {[%clk 0:00:06]} 56. Kd2 {[%clk 0:00:16]}  Ke6 {[%clk 0:00:05]} 57. a5 {[%clk 0:00:16]}  Kd5 {[%clk 0:00:06]} 58. a6 {[%clk 0:00:16]}  Kd4 {[%clk 0:00:06]} 59. Ra8 {[%clk 0:00:17]}  c3+ {[%clk 0:00:07]} 60. Kd1 {[%clk 0:00:17]}  Ke3 {[%clk 0:00:06]} 61. Rxb8 {[%clk 0:00:17]}  c2+ {[%clk 0:00:05]} 62. Kc1 {[%clk 0:00:17]}  Ke2 {[%clk 0:00:06]} 63. Re8 {[%clk 0:00:07]}  d2+ {[%clk 0:00:06]} 64. Kxc2 {[%clk 0:00:08]}  d1=Q+ {[%clk 0:00:06]} 65. Kc3 {[%clk 0:00:08]}  Qd3+ {[%clk 0:00:05]} 66. Kb4 {[%clk 0:00:06]}  Qd4+ {[%clk 0:00:05]} 67. Kb3 {[%clk 0:00:02]}  Qb6+ {[%clk 0:00:05]} 0-1


[Site "https://www.chess.com"]

[Event "Titled Tuesday Blitz September 28 2021"]
[White "Shishkov, Andrei"]
[Black "Wong, Yinn Long"]
[WhiteFideId "4500563"]
[BlackFideId "5707684"]
[WhiteElo "2295"]
[BlackElo "2016"]
[Result "0-1"]
[Round "01"]
[TimeControl "180+1"]
[Date "2021.09.28"]
[WhiteClock "0:00:19"]
[BlackClock "0:01:16"]

1. d4 {[%clk 0:01:29]}  e6 {[%clk 0:02:58]} 2. c4 {[%clk 0:01:29]}  f5 {[%clk 0:02:58]} 3. g3 {[%clk 0:01:28]}  Nf6 {[%clk 0:02:58]} 4. Bg2 {[%clk 0:01:28]}  d5 {[%clk 0:02:58]} 5. Nh3 {[%clk 0:01:28]}  c6 {[%clk 0:02:54]} 6. O-O {[%clk 0:01:29]}  Be7 {[%clk 0:02:54]} 7. Nd2 {[%clk 0:01:28]}  O-O {[%clk 0:02:55]} 8. Qc2 {[%clk 0:01:28]}  b6 {[%clk 0:02:53]} 9. Nf4 {[%clk 0:01:26]}  Bd6 {[%clk 0:02:45]} 10. Nf3 {[%clk 0:01:24]}  Ne4 {[%clk 0:02:35]} 11. Nd3 {[%clk 0:01:24]}  Ba6 {[%clk 0:02:31]} 12. b3 {[%clk 0:01:23]}  Nd7 {[%clk 0:02:30]} 13. Bb2 {[%clk 0:01:21]}  Qe7 {[%clk 0:02:29]} 14. Rfd1 {[%clk 0:01:16]}  Rac8 {[%clk 0:02:29]} 15. Rac1 {[%clk 0:00:59]}  Rfd8 {[%clk 0:02:29]} 16. Qb1 {[%clk 0:00:54]}  dxc4 {[%clk 0:02:21]} 17. bxc4 {[%clk 0:00:53]}  c5 {[%clk 0:02:22]} 18. d5 {[%clk 0:00:52]}  exd5 {[%clk 0:02:15]} 19. cxd5 {[%clk 0:00:52]}  c4 {[%clk 0:02:12]} 20. Nf4 {[%clk 0:00:45]}  c3 {[%clk 0:02:08]} 21. Ba1 {[%clk 0:00:44]}  Bxf4 {[%clk 0:02:07]} 22. gxf4 {[%clk 0:00:44]}  Bxe2 {[%clk 0:02:02]} 23. Re1 {[%clk 0:00:43]}  Nd2 {[%clk 0:01:57]} 24. Qxf5 {[%clk 0:00:36]}  Rf8 {[%clk 0:01:51]} 25. Qg4 {[%clk 0:00:31]}  Nf6 {[%clk 0:01:46]} 26. Qg5 {[%clk 0:00:31]}  Qa3 {[%clk 0:01:23]} 27. Nxd2 {[%clk 0:00:20]}  cxd2 {[%clk 0:01:22]} 28. Bxf6 {[%clk 0:00:20]}  dxe1=Q+ {[%clk 0:01:15]} 29. Rxe1 {[%clk 0:00:20]}  Rxf6 {[%clk 0:01:16]} 30. Rxe2 {[%clk 0:00:20]}  Qc1+ {[%clk 0:01:15]} 31. Bf1 {[%clk 0:00:19]}  Rg6 {[%clk 0:01:16]} 0-1


[Site "https://www.chess.com"]

[Event "Titled Tuesday Blitz September 28 2021"]
[White "Siva Mahadevan"]
[Black "Yirik, Volkan"]
[WhiteFideId "25043153"]
[BlackFideId "6300782"]
[WhiteElo "2203"]
[BlackElo "2418"]
[Result "1-0"]
[Round "01"]
[TimeControl "180+1"]
[Date "2021.09.28"]
[WhiteClock "0:02:41"]
[BlackClock "0:02:50"]

1. e4 {[%clk 0:03:00]}  c5 {[%clk 0:02:58]} 2. Nf3 {[%clk 0:03:00]}  d6 {[%clk 0:02:58]} 3. d4 {[%clk 0:03:00]}  cxd4 {[%clk 0:02:59]} 4. Nxd4 {[%clk 0:03:01]}  Nf6 {[%clk 0:03:00]} 5. Nc3 {[%clk 0:03:02]}  e6 {[%clk 0:03:00]} 6. Be2 {[%clk 0:03:01]}  a6 {[%clk 0:02:59]} 7. O-O {[%clk 0:03:01]}  Qc7 {[%clk 0:03:00]} 8. Be3 {[%clk 0:03:00]}  b5 {[%clk 0:03:00]} 9. a4 {[%clk 0:02:53]}  b4 {[%clk 0:02:59]} 10. Na2 {[%clk 0:02:52]}  Nxe4 {[%clk 0:02:56]} 11. Nxb4 {[%clk 0:02:51]}  d5 {[%clk 0:02:56]} 12. Nd3 {[%clk 0:02:49]}  Bd6 {[%clk 0:02:56]} 13. f4 {[%clk 0:02:48]}  O-O {[%clk 0:02:52]} 14. Bf3 {[%clk 0:02:45]}  Bb7 {[%clk 0:02:52]} 15. Qe1 {[%clk 0:02:43]}  Nd7 {[%clk 0:02:51]} 16. Qh4 {[%clk 0:02:42]}  Be7 {[%clk 0:02:50]} 17. Qxe7 {[%clk 0:02:41]} 1-0


[Site "https://www.chess.com"]

[Event "Titled Tuesday Blitz September 28 2021"]
[White "Sjugirov, Sanan"]
[Black "Devaev, Alexander"]
[WhiteFideId "4189302"]
[BlackFideId "4169395"]
[WhiteElo "2654"]
[BlackElo "2185"]
[Result "1-0"]
[Round "01"]
[TimeControl "180+1"]
[Date "2021.09.28"]
[WhiteClock "0:00:14"]
[BlackClock "0:00:16"]

1. e4 {[%clk 0:02:57]}  c6 {[%clk 0:02:59]} 2. Qe2 {[%clk 0:02:51]}  d5 {[%clk 0:03:00]} 3. Qe3 {[%clk 0:02:20]}  dxe4 {[%clk 0:03:01]} 4. Ne2 {[%clk 0:01:45]}  Nf6 {[%clk 0:03:02]} 5. Nbc3 {[%clk 0:01:43]}  Qb6 {[%clk 0:02:36]} 6. Nxe4 {[%clk 0:01:41]}  Nxe4 {[%clk 0:02:30]} 7. Qxe4 {[%clk 0:01:37]}  Nd7 {[%clk 0:02:31]} 8. Nc3 {[%clk 0:01:29]}  Nf6 {[%clk 0:02:29]} 9. Qh4 {[%clk 0:01:30]}  Bf5 {[%clk 0:02:25]} 10. d3 {[%clk 0:01:26]}  e6 {[%clk 0:02:25]} 11. Qg3 {[%clk 0:01:24]}  Nh5 {[%clk 0:01:56]} 12. Qh4 {[%clk 0:01:12]}  Nf6 {[%clk 0:01:55]} 13. Be2 {[%clk 0:01:10]}  Be7 {[%clk 0:01:56]} 14. Qg3 {[%clk 0:01:08]}  O-O {[%clk 0:01:56]} 15. h4 {[%clk 0:01:05]}  Kh8 {[%clk 0:01:36]} 16. h5 {[%clk 0:01:04]}  h6 {[%clk 0:01:37]} 17. Qe5 {[%clk 0:00:47]}  Rad8 {[%clk 0:01:32]} 18. Qf4 {[%clk 0:00:31]}  Rd4 {[%clk 0:01:21]} 19. Qe3 {[%clk 0:00:19]}  Rfd8 {[%clk 0:01:19]} 20. O-O {[%clk 0:00:18]}  Ng4 {[%clk 0:00:55]} 21. Bxg4 {[%clk 0:00:16]}  Bxg4 {[%clk 0:00:49]} 22. Qe5 {[%clk 0:00:16]}  Bf6 {[%clk 0:00:46]} 23. Qh2 {[%clk 0:00:16]}  Qa5 {[%clk 0:00:34]} 24. Ne4 {[%clk 0:00:15]}  Qxh5 {[%clk 0:00:26]} 25. Qxh5 {[%clk 0:00:15]}  Bxh5 {[%clk 0:00:26]} 26. Nxf6 {[%clk 0:00:15]}  gxf6 {[%clk 0:00:27]} 27. Bxh6 {[%clk 0:00:16]}  Kh7 {[%clk 0:00:22]} 28. Be3 {[%clk 0:00:15]}  Ra4 {[%clk 0:00:18]} 29. b3 {[%clk 0:00:15]}  Bg6 {[%clk 0:00:16]} 30. bxa4 {[%clk 0:00:14]} 1-0


[Site "https://www.chess.com"]

[Event "Titled Tuesday Blitz September 28 2021"]
[White "Spitzl, Vinzent"]
[Black "Kamsky, Gata"]
[WhiteFideId "12901253"]
[BlackFideId "2000024"]
[WhiteElo "2160"]
[BlackElo "2603"]
[Result "0-1"]
[Round "01"]
[TimeControl "180+1"]
[Date "2021.09.28"]
[WhiteClock "0:00:09"]
[BlackClock "0:00:20"]

1. e4 {[%clk 0:02:58]}  c5 {[%clk 0:02:58]} 2. Nf3 {[%clk 0:02:56]}  e6 {[%clk 0:02:58]} 3. d4 {[%clk 0:02:56]}  cxd4 {[%clk 0:02:58]} 4. Nxd4 {[%clk 0:02:57]}  a6 {[%clk 0:02:58]} 5. Bd3 {[%clk 0:02:55]}  g6 {[%clk 0:02:57]} 6. O-O {[%clk 0:02:47]}  Bg7 {[%clk 0:02:57]} 7. Be3 {[%clk 0:02:40]}  Nf6 {[%clk 0:02:52]} 8. c4 {[%clk 0:02:37]}  d6 {[%clk 0:02:45]} 9. Nc3 {[%clk 0:02:37]}  Nbd7 {[%clk 0:02:43]} 10. Qe2 {[%clk 0:02:31]}  b6 {[%clk 0:02:38]} 11. Rad1 {[%clk 0:02:29]}  Bb7 {[%clk 0:02:37]} 12. f3 {[%clk 0:02:27]}  O-O {[%clk 0:02:36]} 13. Bb1 {[%clk 0:02:24]}  Qc7 {[%clk 0:02:35]} 14. Rc1 {[%clk 0:02:21]}  Rac8 {[%clk 0:02:34]} 15. b3 {[%clk 0:02:19]}  Rfe8 {[%clk 0:02:34]} 16. Rfd1 {[%clk 0:02:19]}  Qb8 {[%clk 0:02:33]} 17. Qf2 {[%clk 0:02:01]}  d5 {[%clk 0:02:28]} 18. cxd5 {[%clk 0:01:53]}  exd5 {[%clk 0:02:26]} 19. exd5 {[%clk 0:01:54]}  Rxc3 {[%clk 0:02:04]} 20. Rxc3 {[%clk 0:01:53]}  Nxd5 {[%clk 0:02:04]} 21. Rcd3 {[%clk 0:01:53]}  Nc5 {[%clk 0:02:02]} 22. Bc1 {[%clk 0:01:41]}  Nxd3 {[%clk 0:02:01]} 23. Rxd3 {[%clk 0:01:39]}  Be5 {[%clk 0:01:55]} 24. g3 {[%clk 0:01:31]}  Bg7 {[%clk 0:01:54]} 25. Bb2 {[%clk 0:01:27]}  b5 {[%clk 0:01:49]} 26. Rd1 {[%clk 0:01:25]}  b4 {[%clk 0:01:47]} 27. Bd3 {[%clk 0:01:18]}  Nc3 {[%clk 0:01:46]} 28. Rd2 {[%clk 0:01:09]}  Rd8 {[%clk 0:01:39]} 29. Ne2 {[%clk 0:00:50]}  h5 {[%clk 0:01:27]} 30. Qe3 {[%clk 0:00:40]}  Re8 {[%clk 0:01:21]} 31. Qf2 {[%clk 0:00:39]}  Qa8 {[%clk 0:01:17]} 32. Kg2 {[%clk 0:00:34]}  a5 {[%clk 0:01:08]} 33. Nd4 {[%clk 0:00:33]}  Rd8 {[%clk 0:01:02]} 34. Nb5 {[%clk 0:00:32]}  Rxd3 {[%clk 0:00:44]} 35. Rxd3 {[%clk 0:00:30]}  Nxb5 {[%clk 0:00:45]} 36. Bxg7 {[%clk 0:00:26]}  Kxg7 {[%clk 0:00:44]} 37. Qb6 {[%clk 0:00:27]}  Qa6 {[%clk 0:00:42]} 38. Qxa6 {[%clk 0:00:23]}  Bxa6 {[%clk 0:00:42]} 39. Rd8 {[%clk 0:00:23]}  Bb7 {[%clk 0:00:34]} 40. Rb8 {[%clk 0:00:21]}  Bc6 {[%clk 0:00:33]} 41. Rb6 {[%clk 0:00:21]}  Bd7 {[%clk 0:00:31]} 42. Ra6 {[%clk 0:00:21]}  Nd4 {[%clk 0:00:27]} 43. Rxa5 {[%clk 0:00:17]}  Bc6 {[%clk 0:00:27]} 44. Kf2 {[%clk 0:00:12]}  Nxf3 {[%clk 0:00:27]} 45. Rc5 {[%clk 0:00:12]}  Ba8 {[%clk 0:00:27]} 46. Rc8 {[%clk 0:00:12]}  Bd5 {[%clk 0:00:24]} 47. Rc5 {[%clk 0:00:11]}  Be4 {[%clk 0:00:20]} 48. Rc4 {[%clk 0:00:11]}  f5 {[%clk 0:00:20]} 49. Rxb4 {[%clk 0:00:12]}  Nxh2 {[%clk 0:00:20]} 50. a4 {[%clk 0:00:12]}  Ng4+ {[%clk 0:00:20]} 51. Ke2 {[%clk 0:00:11]}  g5 {[%clk 0:00:19]} 52. a5 {[%clk 0:00:10]}  h4 {[%clk 0:00:20]} 53. gxh4 {[%clk 0:00:10]}  gxh4 {[%clk 0:00:20]} 54. Rxe4 {[%clk 0:00:10]}  fxe4 {[%clk 0:00:20]} 55. a6 {[%clk 0:00:10]}  h3 {[%clk 0:00:20]} 56. Kf1 {[%clk 0:00:10]}  Ne3+ {[%clk 0:00:19]} 57. Kg1 {[%clk 0:00:10]}  Nd5 {[%clk 0:00:19]} 58. a7 {[%clk 0:00:09]}  Nb6 {[%clk 0:00:19]} 59. Kh2 {[%clk 0:00:08]}  e3 {[%clk 0:00:19]} 60. Kg3 {[%clk 0:00:08]}  e2 {[%clk 0:00:19]} 61. Kf2 {[%clk 0:00:09]}  h2 {[%clk 0:00:20]} 62. Kxe2 {[%clk 0:00:09]}  h1=Q {[%clk 0:00:20]} 0-1


[Site "https://www.chess.com"]

[Event "Titled Tuesday Blitz September 28 2021"]
[White "Stribuk, Artiom"]
[Black "Nilsen, Tobias Lang"]
[WhiteFideId "13515659"]
[BlackFideId "1521624"]
[WhiteElo "2224"]
[BlackElo "1975"]
[Result "1-0"]
[Round "01"]
[TimeControl "180+1"]
[Date "2021.09.28"]
[WhiteClock "0:00:11"]
[BlackClock "0:00:52"]

1. d4 {[%clk 0:03:00]}  Nf6 {[%clk 0:02:59]} 2. c4 {[%clk 0:03:00]}  c5 {[%clk 0:02:57]} 3. Nf3 {[%clk 0:02:54]}  cxd4 {[%clk 0:02:57]} 4. Nxd4 {[%clk 0:02:55]}  e5 {[%clk 0:02:58]} 5. Nf3 {[%clk 0:02:54]}  Nc6 {[%clk 0:02:57]} 6. e3 {[%clk 0:02:43]}  d5 {[%clk 0:02:56]} 7. cxd5 {[%clk 0:02:43]}  Nxd5 {[%clk 0:02:57]} 8. Be2 {[%clk 0:02:21]}  Be6 {[%clk 0:02:56]} 9. O-O {[%clk 0:02:20]}  Be7 {[%clk 0:02:56]} 10. Bd2 {[%clk 0:01:37]}  O-O {[%clk 0:02:54]} 11. Nc3 {[%clk 0:01:37]}  Rc8 {[%clk 0:02:53]} 12. Rc1 {[%clk 0:01:36]}  Nxc3 {[%clk 0:02:50]} 13. Bxc3 {[%clk 0:01:37]}  f6 {[%clk 0:02:51]} 14. Qa4 {[%clk 0:01:32]}  Kh8 {[%clk 0:02:46]} 15. Rfd1 {[%clk 0:01:32]}  Qb6 {[%clk 0:02:43]} 16. h3 {[%clk 0:01:22]}  Rfd8 {[%clk 0:02:42]} 17. Nd2 {[%clk 0:01:10]}  Qc7 {[%clk 0:02:20]} 18. Bc4 {[%clk 0:01:05]}  Bxc4 {[%clk 0:02:16]} 19. Nxc4 {[%clk 0:00:54]}  Rxd1+ {[%clk 0:02:17]} 20. Qxd1 {[%clk 0:00:52]}  Rd8 {[%clk 0:02:18]} 21. Qb3 {[%clk 0:00:47]}  Qd7 {[%clk 0:02:11]} 22. Na5 {[%clk 0:00:34]}  Nxa5 {[%clk 0:02:07]} 23. Bxa5 {[%clk 0:00:35]}  Rc8 {[%clk 0:02:07]} 24. Rxc8+ {[%clk 0:00:33]}  Qxc8 {[%clk 0:02:08]} 25. Qf7 {[%clk 0:00:32]}  Qf8 {[%clk 0:02:07]} 26. Qe6 {[%clk 0:00:30]}  h6 {[%clk 0:02:02]} 27. Qd7 {[%clk 0:00:29]}  Bb4 {[%clk 0:01:59]} 28. Bc7 {[%clk 0:00:22]}  Qe7 {[%clk 0:01:49]} 29. Qc8+ {[%clk 0:00:22]}  Kh7 {[%clk 0:01:49]} 30. Qxb7 {[%clk 0:00:22]}  Bd6 {[%clk 0:01:38]} 31. Qe4+ {[%clk 0:00:22]}  Kh8 {[%clk 0:01:38]} 32. Bxd6 {[%clk 0:00:22]}  Qxd6 {[%clk 0:01:39]} 33. Qa8+ {[%clk 0:00:21]}  Kh7 {[%clk 0:01:39]} 34. Qxa7 {[%clk 0:00:22]}  Qd1+ {[%clk 0:01:39]} 35. Kh2 {[%clk 0:00:22]}  Qe2 {[%clk 0:01:38]} 36. f3 {[%clk 0:00:20]}  Qxb2 {[%clk 0:01:37]} 37. a4 {[%clk 0:00:21]}  f5 {[%clk 0:01:36]} 38. a5 {[%clk 0:00:21]}  f4 {[%clk 0:01:36]} 39. exf4 {[%clk 0:00:21]}  exf4 {[%clk 0:01:37]} 40. Qc7 {[%clk 0:00:20]}  Qf6 {[%clk 0:01:21]} 41. Qb6 {[%clk 0:00:13]}  Qg5 {[%clk 0:01:20]} 42. a6 {[%clk 0:00:13]}  Qg3+ {[%clk 0:01:20]} 43. Kh1 {[%clk 0:00:14]}  Qe1+ {[%clk 0:01:20]} 44. Qg1 {[%clk 0:00:15]}  Qa5 {[%clk 0:01:20]} 45. a7 {[%clk 0:00:15]}  Kg6 {[%clk 0:01:19]} 46. Kh2 {[%clk 0:00:14]}  h5 {[%clk 0:01:19]} 47. Qd4 {[%clk 0:00:12]}  Kg5 {[%clk 0:00:52]} 48. Qxg7+ {[%clk 0:00:12]}  Kf5 {[%clk 0:00:52]} 49. Qf8+ {[%clk 0:00:11]} 1-0


[Site "https://www.chess.com"]

[Event "Titled Tuesday Blitz September 28 2021"]
[White "Sychev, Klementy"]
[Black "Chernov, Mikhail"]
[WhiteFideId "4114060"]
[BlackFideId "24143170"]
[WhiteElo "2615"]
[BlackElo "2244"]
[Result "1-0"]
[Round "01"]
[TimeControl "180+1"]
[Date "2021.09.28"]
[WhiteClock "0:00:35"]
[BlackClock "0:00:01"]

1. e4 {[%clk 0:02:32]}  c5 {[%clk 0:02:57]} 2. Nf3 {[%clk 0:02:23]}  Nc6 {[%clk 0:02:57]} 3. g3 {[%clk 0:02:17]}  g6 {[%clk 0:00:15]} 4. Bg2 {[%clk 0:02:14]}  Bg7 {[%clk 0:00:16]} 5. O-O {[%clk 0:02:14]}  e5 {[%clk 0:00:16]} 6. a3 {[%clk 0:02:11]}  Nge7 {[%clk 0:00:17]} 7. b4 {[%clk 0:02:11]}  cxb4 {[%clk 0:00:16]} 8. axb4 {[%clk 0:02:11]}  O-O {[%clk 0:00:17]} 9. b5 {[%clk 0:02:10]}  Nd4 {[%clk 0:00:16]} 10. Nc3 {[%clk 0:02:08]}  d6 {[%clk 0:00:15]} 11. Ba3 {[%clk 0:02:05]}  a6 {[%clk 0:00:15]} 12. Bb4 {[%clk 0:02:04]}  Bg4 {[%clk 0:00:12]} 13. h3 {[%clk 0:01:54]}  Nxf3+ {[%clk 0:00:12]} 14. Bxf3 {[%clk 0:01:55]}  Bxh3 {[%clk 0:00:13]} 15. Re1 {[%clk 0:01:56]}  axb5 {[%clk 0:00:12]} 16. Rxa8 {[%clk 0:01:55]}  Qxa8 {[%clk 0:00:13]} 17. Bxd6 {[%clk 0:01:55]}  Re8 {[%clk 0:00:13]} 18. Nxb5 {[%clk 0:01:53]}  Nc6 {[%clk 0:00:13]} 19. Nc7 {[%clk 0:01:53]}  Qc8 {[%clk 0:00:13]} 20. Nxe8 {[%clk 0:01:53]}  Qxe8 {[%clk 0:00:14]} 21. c3 {[%clk 0:01:51]}  b5 {[%clk 0:00:14]} 22. Qb3 {[%clk 0:01:49]}  h5 {[%clk 0:00:14]} 23. Qxb5 {[%clk 0:01:47]}  h4 {[%clk 0:00:14]} 24. Ra1 {[%clk 0:01:03]}  hxg3 {[%clk 0:00:13]} 25. fxg3 {[%clk 0:01:03]}  Bd7 {[%clk 0:00:13]} 26. Qd5 {[%clk 0:00:55]}  Qd8 {[%clk 0:00:08]} 27. Kf2 {[%clk 0:00:46]}  Qg5 {[%clk 0:00:08]} 28. Ra8+ {[%clk 0:00:44]}  Kh7 {[%clk 0:00:08]} 29. Bc5 {[%clk 0:00:41]}  Be6 {[%clk 0:00:05]} 30. Be3 {[%clk 0:00:35]}  Bxd5 {[%clk 0:00:01]} 31. Bxg5 {[%clk 0:00:35]} 1-0


[Site "https://www.chess.com"]

[Event "Titled Tuesday Blitz September 28 2021"]
[White "Tang, Andrew"]
[Black "Veiga, Emerson de Sousa"]
[WhiteFideId "2059630"]
[BlackFideId "2151898"]
[WhiteElo "2588"]
[BlackElo "2034"]
[Result "1-0"]
[Round "01"]
[TimeControl "180+1"]
[Date "2021.09.28"]
[WhiteClock "0:00:29"]
[BlackClock "0:00:09"]

1. Nh3 {[%clk 0:02:57]}  d5 {[%clk 0:02:59]} 2. g3 {[%clk 0:02:57]}  c5 {[%clk 0:02:58]} 3. d4 {[%clk 0:02:57]}  Nc6 {[%clk 0:02:59]} 4. dxc5 {[%clk 0:02:56]}  Nf6 {[%clk 0:02:56]} 5. Bg2 {[%clk 0:02:54]}  h6 {[%clk 0:02:53]} 6. Nf4 {[%clk 0:02:51]}  e6 {[%clk 0:02:53]} 7. Be3 {[%clk 0:02:38]}  Qa5+ {[%clk 0:02:36]} 8. c3 {[%clk 0:02:37]}  Be7 {[%clk 0:02:04]} 9. b4 {[%clk 0:02:17]}  Qc7 {[%clk 0:02:01]} 10. O-O {[%clk 0:02:13]}  O-O {[%clk 0:01:57]} 11. h3 {[%clk 0:01:53]}  a5 {[%clk 0:01:52]} 12. Qb3 {[%clk 0:01:40]}  axb4 {[%clk 0:01:39]} 13. cxb4 {[%clk 0:01:40]}  d4 {[%clk 0:01:39]} 14. Bd2 {[%clk 0:01:28]}  e5 {[%clk 0:01:39]} 15. Nd3 {[%clk 0:01:22]}  Be6 {[%clk 0:01:34]} 16. Qb2 {[%clk 0:01:17]}  g5 {[%clk 0:00:46]} 17. b5 {[%clk 0:00:59]}  Na5 {[%clk 0:00:40]} 18. b6 {[%clk 0:00:54]}  Qb8 {[%clk 0:00:40]} 19. Bxa5 {[%clk 0:00:53]}  Rxa5 {[%clk 0:00:39]} 20. Qb4 {[%clk 0:00:44]}  Ra6 {[%clk 0:00:21]} 21. Nd2 {[%clk 0:00:42]}  Nd7 {[%clk 0:00:20]} 22. Qb5 {[%clk 0:00:40]}  f5 {[%clk 0:00:13]} 23. Nb4 {[%clk 0:00:33]}  Ra3 {[%clk 0:00:11]} 24. Nc4 {[%clk 0:00:30]}  Rc3 {[%clk 0:00:10]} 25. Nd5 {[%clk 0:00:28]}  Bxd5 {[%clk 0:00:09]} 26. Bxd5+ {[%clk 0:00:29]}  Kg7 {[%clk 0:00:09]} 27. Qxd7 {[%clk 0:00:29]} 1-0


[Site "https://www.chess.com"]

[Event "Titled Tuesday Blitz September 28 2021"]
[White "Timmermans, Mark"]
[Black "Colbow, Collin"]
[WhiteFideId "1026399"]
[BlackFideId "16201132"]
[WhiteElo "2460"]
[BlackElo "2137"]
[Result "1-0"]
[Round "01"]
[TimeControl "180+1"]
[Date "2021.09.28"]
[WhiteClock "0:00:48"]
[BlackClock "0:00:12"]

1. b4 {[%clk 0:03:00]}  e6 {[%clk 0:02:55]} 2. Bb2 {[%clk 0:02:59]}  Nf6 {[%clk 0:02:53]} 3. b5 {[%clk 0:03:00]}  a6 {[%clk 0:02:51]} 4. a4 {[%clk 0:03:00]}  axb5 {[%clk 0:02:50]} 5. axb5 {[%clk 0:03:01]}  Rxa1 {[%clk 0:02:50]} 6. Bxa1 {[%clk 0:03:02]}  Be7 {[%clk 0:02:47]} 7. c4 {[%clk 0:03:02]}  d5 {[%clk 0:02:45]} 8. e3 {[%clk 0:03:03]}  dxc4 {[%clk 0:02:44]} 9. Bxc4 {[%clk 0:03:04]}  O-O {[%clk 0:02:43]} 10. Nf3 {[%clk 0:03:05]}  c6 {[%clk 0:02:34]} 11. O-O {[%clk 0:03:05]}  cxb5 {[%clk 0:02:32]} 12. Bxb5 {[%clk 0:03:06]}  Bd7 {[%clk 0:02:23]} 13. Nc3 {[%clk 0:02:59]}  Bxb5 {[%clk 0:02:20]} 14. Nxb5 {[%clk 0:03:00]}  Qa5 {[%clk 0:02:19]} 15. Qb3 {[%clk 0:03:00]}  Nbd7 {[%clk 0:01:53]} 16. Bc3 {[%clk 0:02:51]}  Qb6 {[%clk 0:01:46]} 17. Rb1 {[%clk 0:02:48]}  Ne4 {[%clk 0:01:37]} 18. Bd4 {[%clk 0:02:41]}  Bc5 {[%clk 0:01:36]} 19. d3 {[%clk 0:02:25]}  Bxd4 {[%clk 0:01:31]} 20. Nbxd4 {[%clk 0:02:26]}  Qxb3 {[%clk 0:01:29]} 21. Nxb3 {[%clk 0:02:26]}  Nd6 {[%clk 0:01:21]} 22. d4 {[%clk 0:02:20]}  Rc8 {[%clk 0:01:17]} 23. h3 {[%clk 0:02:15]}  f6 {[%clk 0:01:08]} 24. Ne1 {[%clk 0:01:46]}  Rc3 {[%clk 0:01:04]} 25. Kf1 {[%clk 0:01:46]}  Kf7 {[%clk 0:01:02]} 26. Ke2 {[%clk 0:01:46]}  b5 {[%clk 0:01:00]} 27. Nd2 {[%clk 0:01:37]}  Nb6 {[%clk 0:00:55]} 28. Nd3 {[%clk 0:01:32]}  Nbc4 {[%clk 0:00:47]} 29. Nb3 {[%clk 0:01:22]}  Na3 {[%clk 0:00:38]} 30. Rb2 {[%clk 0:01:22]}  Ndc4 {[%clk 0:00:37]} 31. Ra2 {[%clk 0:00:55]}  Rxb3 {[%clk 0:00:37]} 32. g4 {[%clk 0:00:55]}  g5 {[%clk 0:00:21]} 33. e4 {[%clk 0:00:51]}  Nb1 {[%clk 0:00:19]} 34. Ra7+ {[%clk 0:00:52]}  Kg6 {[%clk 0:00:19]} 35. Nc5 {[%clk 0:00:53]}  Rb2+ {[%clk 0:00:18]} 36. Kf3 {[%clk 0:00:47]}  Nbd2+ {[%clk 0:00:17]} 37. Kg2 {[%clk 0:00:47]}  Nd6 {[%clk 0:00:13]} 38. Nxe6 {[%clk 0:00:47]}  N2xe4 {[%clk 0:00:13]} 39. Nf8+ {[%clk 0:00:47]}  Kh6 {[%clk 0:00:12]} 40. Rxh7# {[%clk 0:00:48]} 1-0


[Site "https://www.chess.com"]